{"text_format":"1","workbook":"xlsx","n_sheets":3,"sheets":["annex 1A - ESTAT DESP-ING","annex. 2 - Despeses ","annex. 3 - ingressos-detall "],"not_rendered":{"charts":0,"images":1,"macros":1,"external_links":0,"defined_names":5,"comments":3,"pivot_tables":0},"unopened":[],"bounds":{"document_bytes":16777216,"sheet_cells":100000,"rows_first":2000,"rows_last":500,"rows_between":2000,"halvings":0,"cell_chars":16384,"cell_head_chars":4096},"cells_cut":0,"cells_raw":0,"read":"whole","date_system":"1900"}

{"sheet":"annex 1A - ESTAT DESP-ING","index":0,"n_rows":47,"n_cols":8,"rows_kept":47,"cut":false,"hidden":false,"merged":[[42,0,42,9],[43,0,43,9],[44,0,44,9],[46,0,46,9],[45,0,45,9],[32,0,32,9],[33,0,34,9],[40,0,40,9],[41,0,41,9],[36,0,36,1],[25,0,31,9],[20,4,20,5],[20,6,20,7],[12,4,12,5],[13,4,13,5],[14,4,14,5],[15,4,15,5],[0,0,0,9],[5,0,5,2],[16,4,16,5],[17,4,17,5],[24,0,24,2],[2,4,2,5],[3,4,3,5],[4,4,4,5],[6,4,6,5],[7,4,7,5],[8,4,8,5],[9,4,9,5],[10,4,10,5],[5,4,5,7],[11,4,11,5]]}
["ANNEX 1. Estat representatiu de les despeses realitzades i dels ingressos obtinguts per a la realització de les activitats subvencionades (*)"]
[]
["Nom de la persona física/jurídica beneficiària:         ",null,null,null,"Període d'execució del projecte subvencionat:",null,null,"a"]
["Codi de subvenció:",null,null,null,"Import total del projecte:",null,{"$f":"C21","v":0},"euros"]
["Nom del projecte subvencionat:",null,null,null,"Import de la subvenció atorgada:",null,null,"euros"]
["Despeses del projecte/activitat/servei subvencionat",null,null,null,"Ingressos del projecte/activitat/servei subvencionat"]
["Concepte","Previsió inicial o reformulació ja aprovada (1)","Despeses Reals\n(2)",null,"Concepte",null,"Previsió inicial o reformulació ja aprovada (1)","Ingressos Reals\n(3)"]
["A. Recursos Humans \n(retribucions, S.Social)",null,{"$f":"'annex. 2 - Despeses '!H20","v":0},null,"A. Subvencions municipals",null,null,{"$f":"'annex. 3 - ingressos-detall '!F17","v":0}]
["B. Lloguers \n(materials, infraestructures etc.)",null,{"$f":"'annex. 2 - Despeses '!H29","v":0},null,"B. Subvencions d'altres administracions",null,null,{"$f":"'annex. 3 - ingressos-detall '!F24","v":0}]
["C. Subministraments \n(electricitat, aigua, gas)",null,{"$f":"'annex. 2 - Despeses '!H36","v":0},null,"C. Aportacions d'ens privats",null,null,{"$f":"'annex. 3 - ingressos-detall '!F31","v":0}]
["D. Comunicacions \n(telèfon, fax, correus, etc.)",null,{"$f":"'annex. 2 - Despeses '!H43","v":0},null,"D. Recursos propis de la persona jurídica (l'entitat)",null,null,{"$f":"'annex. 3 - ingressos-detall '!F39","v":0}]
["E. Manteniment d'edificis i/o instal·lacions",null,{"$f":"'annex. 2 - Despeses '!H50","v":0},null,"E. Taquillatge",null,null,{"$f":"'annex. 3 - ingressos-detall '!F45","v":0}]
["F. Adquisició de material fungible\n(d'oficina, etc.)",null,{"$f":"'annex. 2 - Despeses '!H57","v":0},null,"F. Quotes d'inscripció",null,null,{"$f":"'annex. 3 - ingressos-detall '!F54","v":0}]
["G. Transport - Missatgeria",null,{"$f":"'annex. 2 - Despeses '!H64","v":0},null,"G. Venda de Productes",null,null,{"$f":"'annex. 3 - ingressos-detall '!F62","v":0}]
["H. Publicitat i Propaganda",null,{"$f":"'annex. 2 - Despeses '!H70","v":0},null,"H. Publicitat i/o Esponsorització",null,null,{"$f":"'annex. 3 - ingressos-detall '!F69","v":0}]
["I. Assegurances",null,{"$f":"'annex. 2 - Despeses '!H75","v":0},null,"I. Altres ingressos",null,null,{"$f":"'annex. 3 - ingressos-detall '!F79","v":0}]
["J. Allotjament i dietes",null,{"$f":"'annex. 2 - Despeses '!H80","v":0},null,"Total Ingressos",null,{"$f":"SUM(G8:G16)","v":0},{"$f":"SUM(H8:H16)","v":0}]
["K. Viatges i desplaçaments",null,{"$f":"'annex. 2 - Despeses '!H85","v":0},null,"% finançament municipal (5)",null,{"$f":"IF(G8=\"\",\"- %\",+G8/G17)","v":"- %"},{"$f":"IF(H8=\"\",\"- %\",+H8/H17)","v":{"$error":"#DIV/0!"}}]
["L. Treballs realitzats per empreses externes\n(neteja, seguretat, altres directament relacionats amb el projecte)",null,{"$f":"'annex. 2 - Despeses '!H92","v":0}]
["M. Altres despeses\n(no incloses en cap dels apartats anteriors, com per exemple amortizacions dels bens adquirits, etc)",null,{"$f":"'annex. 2 - Despeses '!H98","v":0}]
["Total Despeses",{"$f":"SUM(B8:B20)","v":0},{"$f":"SUM(C8:C20)","v":0},null,"Desviació de Despeses (4)",null,"Desviació d'ingressos (4)"]
[null,"Previsió inicial","Real",null,"Import"," % (6)","Import","%"]
["Diferència Ingressos - Despeses ",{"$f":"+G17-B21","v":0},{"$f":"+H17-C21","v":0},null,{"$f":"+C21-B21","v":0},{"$f":"+E23/B21","v":{"$error":"#DIV/0!"}},{"$f":"+H17-G17","v":0},{"$f":"+G23/G17","v":{"$error":"#DIV/0!"}}]
[]
["Motivació de la desviació en la despesa total"]
[]
[]
[]
[]
[]
[]
[]
["El Sr/Sra (indiqueu nom i cognoms),  amb DNI/NIE número (indiqueu DNI/NIE) en qualitat de persona física beneficiària o representant legal de la persona jurídica beneficiària (indicar el nom de l'entitat) amb NIF (indicar el NIF de l'entitat)"]
["DECLARA que en relació al projecte/activitat/servei subvencionat s'han produït els ingressos i despeses que figuren en el present document, i que les desviacions respecte al pressupost inicial s'han produït per les motivacions a dalt esmentades, i perquè així consti, als efectes de justificar el compliment de l'objecte de la subvenció concedida, signo la present declaració responsable."]
[]
[]
["Població i data: ",null,null,null,"Signatura i segell"]
[]
[]
["Notes:"]
["(*) Les columnes ombrejades en color  s'aniran emplenant automàticament a partir de les dades introduïdes en els annexos 2 i 3. Per tant, no imprimiu aquest full fins haver emplenat els altres."]
["(1) Previsió inicial o reformulació ja aprovada= S'han d'indicar la previsió inicial de despeses i d'ingressos segons allò que es va indicar al projecte original en el \"pla de viabilitat econòmica del projecte - pressupost general\" . En cas que ja s'hagi aprovat una reformulació, s'han d'indicar les quantitats reformulades. "]
["(2) Despeses reals = Cost real total del projecte subvencionat. Automàticament s'introduiran els subtotals de les despeses relacionades a l'annex 2 de relació de despeses."]
["(3) Ingresos reals = Total d'ingressos obtinguts per a la realització del projecte subvencionat. Automàticament s'introduiran els subtotals dels ingressos relacionats a l'annex 3. "]
["(4) Desviació: En el cas de les despeses, la desviació és la diferència entre despeses reals i la previsió inicial de despeses; i en el cas d'ingressos, la diferència entre els ingressos reals i la previsió inicial d'ingressos. "]
["(5) % finançament municipal = percentatge que suposen les subvencions de l'Ajuntament de Barcelona (A) respecte del  total d'ingressos del projecte subvencionat."]
["(6) El % de la desviació final de despeses es calcula dividint l'import resultant de despeses reals - despeses previstes, entre el total de despeses previstes, En el cas que el percentatge de desviació sigui superior al 50% cal motivar-ho, en el requadre habilitat a tal efecte."]

{"sheet":"annex. 2 - Despeses ","index":1,"n_rows":112,"n_cols":10,"rows_kept":112,"cut":false,"hidden":false,"merged":[[42,8,42,9],[71,8,71,9],[72,8,72,9],[73,8,73,9],[74,8,74,9],[2,4,2,6],[3,4,3,6],[4,4,4,6],[67,8,67,9],[66,8,66,9],[63,8,63,9],[41,8,41,9],[40,8,40,9],[39,8,39,9],[38,8,38,9],[37,8,37,9],[35,8,35,9],[34,8,34,9],[33,8,33,9],[32,8,32,9],[31,8,31,9],[30,8,30,9],[12,8,12,9],[11,8,11,9],[58,8,58,9],[69,8,69,9],[68,8,68,9],[59,8,59,9],[44,8,44,9],[56,8,56,9],[55,8,55,9],[54,8,54,9],[53,8,53,9],[52,8,52,9],[51,8,51,9],[49,8,49,9],[48,8,48,9],[47,8,47,9],[46,8,46,9],[45,8,45,9],[94,8,94,9],[96,8,96,9],[97,8,97,9],[98,8,98,9],[98,0,98,5],[97,0,97,6],[62,8,62,9],[61,8,61,9],[60,8,60,9],[86,8,86,9],[87,8,87,9],[90,8,90,9],[91,8,91,9],[81,8,81,9],[82,8,82,9],[83,8,83,9],[84,8,84,9],[93,8,93,9],[76,8,76,9],[77,8,77,9],[78,8,78,9],[79,8,79,9],[28,8,28,9],[27,8,27,9],[25,8,25,9],[24,8,24,9],[23,8,23,9],[19,8,19,9],[0,0,0,9],[4,0,4,1],[19,0,19,6],[2,2,2,3],[3,2,3,3],[4,2,4,3],[10,8,10,9],[109,0,109,9],[110,0,110,9],[107,0,107,9],[3,0,3,1],[100,1,100,9],[7,1,8,1],[7,0,8,0],[6,0,6,4],[2,0,2,1],[84,0,84,6],[7,2,8,2],[29,0,29,9],[36,0,36,9],[15,8,15,9],[14,8,14,9],[13,8,13,9],[104,1,104,3],[104,5,104,9],[101,1,101,9],[91,0,91,6],[79,0,79,6],[28,0,28,6],[35,0,35,6],[20,0,20,9],[112,0,112,9],[111,0,111,9],[7,8,7,9],[8,8,8,9],[9,0,9,9],[18,8,18,9],[64,0,64,9],[69,0,69,6],[63,0,63,6],[85,0,85,9],[92,0,92,9],[56,0,56,6],[50,0,50,9],[22,8,22,9],[21,8,21,9],[7,3,7,4],[75,0,75,9],[70,0,70,9],[74,0,74,6],[80,0,80,9],[57,0,57,9],[49,0,49,6],[43,0,43,9],[42,0,42,6]]}
["ANNEX 2. Relació classificada de les despeses de l'activitat subvencionada"]
[]
["Persona física/jurídica beneficiària:         ",null,{"$f":"IF('annex 1A - ESTAT DESP-ING'!B3:B3=\"\",\"\",'annex 1A - ESTAT DESP-ING'!B3:B3)","v":""},null,"Import total del projecte:",null,null,{"$f":"IF('annex 1A - ESTAT DESP-ING'!G4=\"\",\"\",'annex 1A - ESTAT DESP-ING'!G4)","v":0},"euros"]
["Codi de subvenció:",null,{"$f":"IF('annex 1A - ESTAT DESP-ING'!B4:B4=\"\",\"\",'annex 1A - ESTAT DESP-ING'!B4:B4)","v":""},null,"Import de la subvenció atorgada:",null,null,{"$f":"IF('annex 1A - ESTAT DESP-ING'!G5=\"\",\"\",'annex 1A - ESTAT DESP-ING'!G5)","v":""},"euros"]
["Nom del projecte subvencionat:",null,{"$f":"IF('annex 1A - ESTAT DESP-ING'!B5:B5=\"\",\"\",'annex 1A - ESTAT DESP-ING'!B5:B5)","v":""},null,"Període d'execució del projecte subvencionat:",null,null,{"$f":"IF('annex 1A - ESTAT DESP-ING'!G3=\"\",\"\",'annex 1A - ESTAT DESP-ING'!G3)","v":""},"a",{"$f":"IF('annex 1A - ESTAT DESP-ING'!I3=\"\",\"\",'annex 1A - ESTAT DESP-ING'!I3)","v":""}]
[]
["Despeses del projecte/activitat/servei subvencionat (*)"]
["núm. d'ordre (0)","número de document: justificants despesa personal (1), factura o rebut/tiquet(2)","Concepte de la factura / \ndocument probatori equivalent","Emissor de la factura",null,"data d'emissió","Import total de la factura","Import imputable (dedicat) al projecte (3)","Observacions"]
[null,null,null,"NIF","Nom","dd/mm/aaaa","euros","euros","(2)"]
["A. Recursos Humans (retribucions brutes i Seguretat Social del personal fix o eventual contractat)"]
[{"$f":"IF(B11<>\"\",1,\"\")","v":""}]
[{"$f":"IF(B12<>\"\",MAX($A$11:A11)+1,\"\")","v":""}]
[{"$f":"IF(B13<>\"\",MAX($A$11:A12)+1,\"\")","v":""}]
[{"$f":"IF(B14<>\"\",MAX($A$11:A13)+1,\"\")","v":""}]
[{"$f":"IF(B15<>\"\",MAX($A$11:A14)+1,\"\")","v":""}]
[{"$f":"IF(B16<>\"\",MAX($A$11:A15)+1,\"\")","v":""}]
[{"$f":"IF(B17<>\"\",MAX($A$11:A16)+1,\"\")","v":""}]
[{"$f":"IF(B18<>\"\",MAX($A$11:A17)+1,\"\")","v":""}]
[{"$f":"IF(B19<>\"\",MAX($A$11:A18)+1,\"\")","v":""}]
["Subtotal A",null,null,null,null,null,null,{"$f":"SUM(H11:H19)","v":0}]
["B. Lloguers (materials, infraestructures)"]
[{"$f":"IF(B22<>\"\",MAX($A$11:A21)+1,\"\")","v":""}]
[{"$f":"IF(B23<>\"\",MAX($A$21:A22)+1,\"\")","v":""}]
[{"$f":"IF(B24<>\"\",MAX($A$21:A23)+1,\"\")","v":""}]
[{"$f":"IF(B25<>\"\",MAX($A$21:A24)+1,\"\")","v":""}]
[{"$f":"IF(B26<>\"\",MAX($A$21:A25)+1,\"\")","v":""}]
[{"$f":"IF(B27<>\"\",MAX($A$21:A26)+1,\"\")","v":""}]
[{"$f":"IF(B28<>\"\",MAX($A$21:A27)+1,\"\")","v":""}]
["Subtotal B",null,null,null,null,null,null,{"$f":"SUM(H22:H28)","v":0}]
["C. Subministraments (llum, aigua, gas)"]
[{"$f":"IF(B31<>\"\",MAX($A$11:A30)+1,\"\")","v":""}]
[{"$f":"IF(B32<>\"\",MAX($A$21:A31)+1,\"\")","v":""}]
[{"$f":"IF(B33<>\"\",MAX($A$21:A32)+1,\"\")","v":""}]
[{"$f":"IF(B34<>\"\",MAX($A$21:A33)+1,\"\")","v":""}]
[{"$f":"IF(B35<>\"\",MAX($A$21:A34)+1,\"\")","v":""}]
["Subtotal C",null,null,null,null,null,null,{"$f":"SUM(H31:H35)","v":0}]
["D. Comunicacions (telèfon, fax, correus)"]
[{"$f":"IF(B38<>\"\",MAX($A$11:A37)+1,\"\")","v":""}]
[{"$f":"IF(B39<>\"\",MAX($A$21:A38)+1,\"\")","v":""}]
[{"$f":"IF(B40<>\"\",MAX($A$21:A39)+1,\"\")","v":""}]
[{"$f":"IF(B41<>\"\",MAX($A$21:A40)+1,\"\")","v":""}]
[{"$f":"IF(B42<>\"\",MAX($A$21:A41)+1,\"\")","v":""}]
["Subtotal D",null,null,null,null,null,null,{"$f":"SUM(H38:H42)","v":0}]
["E. Manteniment d'edificis i/o instal·lacions"]
[{"$f":"IF(B45<>\"\",MAX($A$11:A44)+1,\"\")","v":""}]
[{"$f":"IF(B46<>\"\",MAX($A$21:A45)+1,\"\")","v":""}]
[{"$f":"IF(B47<>\"\",MAX($A$21:A46)+1,\"\")","v":""}]
[{"$f":"IF(B48<>\"\",MAX($A$21:A47)+1,\"\")","v":""}]
[{"$f":"IF(B49<>\"\",MAX($A$21:A48)+1,\"\")","v":""}]
["Subtotal E",null,null,null,null,null,null,{"$f":"SUM(H45:H49)","v":0}]
["F. Adquisició de material fungible (d'oficina, etc.)"]
[{"$f":"IF(B52<>\"\",MAX($A$11:A51)+1,\"\")","v":""}]
[{"$f":"IF(B53<>\"\",MAX($A$21:A52)+1,\"\")","v":""}]
[{"$f":"IF(B54<>\"\",MAX($A$21:A53)+1,\"\")","v":""}]
[{"$f":"IF(B55<>\"\",MAX($A$21:A54)+1,\"\")","v":""}]
[{"$f":"IF(B56<>\"\",MAX($A$21:A55)+1,\"\")","v":""}]
["Subtotal F",null,null,null,null,null,null,{"$f":"SUM(H52:H56)","v":0}]
["G. Transport - Missatgeria"]
[{"$f":"IF(B59<>\"\",MAX($A$11:A58)+1,\"\")","v":""}]
[{"$f":"IF(B60<>\"\",MAX($A$21:A59)+1,\"\")","v":""}]
[{"$f":"IF(B61<>\"\",MAX($A$21:A60)+1,\"\")","v":""}]
[{"$f":"IF(B62<>\"\",MAX($A$21:A61)+1,\"\")","v":""}]
[{"$f":"IF(B63<>\"\",MAX($A$21:A62)+1,\"\")","v":""}]
["Subtotal G",null,null,null,null,null,null,{"$f":"SUM(H59:H63)","v":0}]
["H. Publicitat i Propaganda"]
[{"$f":"IF(B66<>\"\",MAX($A$11:A65)+1,\"\")","v":""}]
[{"$f":"IF(B67<>\"\",MAX($A$21:A66)+1,\"\")","v":""}]
[{"$f":"IF(B68<>\"\",MAX($A$21:A67)+1,\"\")","v":""}]
[{"$f":"IF(B69<>\"\",MAX($A$21:A68)+1,\"\")","v":""}]
["Subtotal H",null,null,null,null,null,null,{"$f":"SUM(H66:H69)","v":0}]
["I. Assegurances"]
[{"$f":"IF(B72<>\"\",MAX($A$11:A71)+1,\"\")","v":""}]
[{"$f":"IF(B73<>\"\",MAX($A$21:A72)+1,\"\")","v":""}]
[{"$f":"IF(B74<>\"\",MAX($A$21:A73)+1,\"\")","v":""}]
["Subtotal I",null,null,null,null,null,null,{"$f":"SUM(H72:H74)","v":0}]
["J. Allotjament i dietes (2)"]
[{"$f":"IF(B77<>\"\",MAX($A$11:A76)+1,\"\")","v":""}]
[{"$f":"IF(B78<>\"\",MAX($A$21:A77)+1,\"\")","v":""}]
[{"$f":"IF(B79<>\"\",MAX($A$21:A78)+1,\"\")","v":""}]
["Subtotal J",null,null,null,null,null,null,{"$f":"SUM(H77:H79)","v":0}]
["K. Viatges i desplaçaments (2)"]
[{"$f":"IF(B82<>\"\",MAX($A$11:A81)+1,\"\")","v":""}]
[{"$f":"IF(B83<>\"\",MAX($A$21:A82)+1,\"\")","v":""}]
[{"$f":"IF(B84<>\"\",MAX($A$21:A83)+1,\"\")","v":""}]
["Subtotal K",null,null,null,null,null,null,{"$f":"SUM(H82:H84)","v":0}]
["L. Treballs realitzats per empreses externes (neteja, seguretat, altres treballs directament relacionats amb l'activitat i/o projecte)"]
[{"$f":"IF(B87<>\"\",MAX($A$11:A86)+1,\"\")","v":""}]
[{"$f":"IF(B88<>\"\",MAX($A$21:A87)+1,\"\")","v":""}]
[{"$f":"IF(B89<>\"\",MAX($A$21:A88)+1,\"\")","v":""}]
[{"$f":"IF(B90<>\"\",MAX($A$21:A89)+1,\"\")","v":""}]
[{"$f":"IF(B91<>\"\",MAX($A$21:A90)+1,\"\")","v":""}]
["Subtotal L",null,null,null,null,null,null,{"$f":"SUM(H87:H91)","v":0}]
["M. Altres despeses (a especificar)"]
[{"$f":"IF(B94<>\"\",MAX($A$11:A93)+1,\"\")","v":""}]
[{"$f":"IF(B95<>\"\",MAX($A$21:A94)+1,\"\")","v":""}]
[{"$f":"IF(B96<>\"\",MAX($A$21:A95)+1,\"\")","v":""}]
[{"$f":"IF(B97<>\"\",MAX($A$21:A96)+1,\"\")","v":""}]
["Subtotal M",null,null,null,null,null,null,{"$f":"SUM(H94:H97)","v":0}]
["TOTAL DESPESES",null,null,null,null,null,"TOTAL",{"$f":"+H20+H29+H36+H43+H50+H57+H64+H70+H75+H80+H85+H92+H98","v":0}]
[]
[null,{"$f":"'annex 1A - ESTAT DESP-ING'!A33","v":"El Sr/Sra (indiqueu nom i cognoms),  amb DNI/NIE número (indiqueu DNI/NIE) en qualitat de persona física beneficiària o representant legal de la persona jurídica beneficiària (indicar el nom de l'entitat) amb NIF (indicar el NIF de l'entitat)"}]
[null,"CERTIFICA que els rebuts/tiquets que s'han identificat com a tals en el camp d'observacions corresponen a despeses generades per l'esmentada activitat, que pels seus imports i característiques no han pogut ser objecte de factura; que els justificants relacionats imputats al projecte/activitat/servei subvencionat durant el seu període d'execució han estat efectivament pagats; que custodiarà la documentació suport que ho acredita; que aquesta documentació es troba a disposició de l'Ajuntament de Barcelona o dels altres ens municipals en els arxius d'aquesta Entitat, durant un període mínim de 4 anys a comptar des de la data de presentació de la present justificació."]
[]
[]
[null,"Població i data: ",null,null,null,"Signatura i segell"]
[]
["Notes:"]
["(*) S'han de relacionar totes les despeses del projecte/activitat/servei subvencionat. En el cas que el nombre de files de cada concepte sigui insuficient podeu inserir línies dins del mateix concepte seleccionant una cel·la verda i fent clic sobre el botó d'inserir línia."]
["(0) El número d'ordre ha de ser correlatiu començant per 1"]
["(1) Respecte a les despeses de recursos humans, pot ser subvencionable el cost total salarial mensual, que correspon a la suma de la retribució bruta que apareix a la nòmina del treballador/a més la quota de l'empresa a la Seg. Social. Les despeses de personal es justifiquen amb la nòmina del treballador acompanyada dels corresponents TC1 i TC2 de la TGSS i el model 111 de l'IRPF."]
["(2) En el cas que el document justificatiu de la resta de despeses, no sigui una factura, sinó un altre document probatori equivalent, com un rebut o justificant (com per dietes o transport públic), indiqueu-lo en el camp d'observacions."]
["(3) En el cas que un justificant inclogui conceptes que no tenen a veure amb el projecte/activitat/servei per al qual s'ha atorgat la subvenció, aquí només s'ha d'indicar la part que realment s'ha dedicat al projecte."]

{"sheet":"annex. 3 - ingressos-detall ","index":2,"n_rows":90,"n_cols":9,"rows_kept":90,"cut":false,"hidden":false,"merged":[[82,1,82,9],[64,6,64,9],[63,6,63,9],[78,6,78,9],[77,6,77,9],[73,6,73,9],[72,6,72,9],[71,6,71,9],[79,6,79,9],[81,1,81,9],[79,0,79,3],[78,0,78,3],[62,0,62,9],[69,0,69,9],[58,6,58,9],[68,6,68,9],[70,6,70,9],[68,0,68,3],[61,0,61,3],[59,6,59,9],[67,6,67,9],[65,6,65,9],[41,6,41,9],[40,6,40,9],[53,6,53,9],[52,6,52,9],[51,6,51,9],[49,6,49,9],[48,6,48,9],[47,6,47,9],[46,6,46,9],[22,6,22,9],[21,6,21,9],[20,6,20,9],[19,6,19,9],[18,6,18,9],[0,0,0,9],[9,0,9,9],[17,0,17,9],[24,0,24,9],[7,6,8,9],[10,6,10,9],[11,6,11,9],[7,0,8,0],[12,6,12,9],[15,6,15,9],[3,2,3,3],[2,2,2,3],[6,0,6,3],[4,2,4,3],[7,2,7,3],[7,1,8,1],[16,0,16,3],[53,0,53,3],[31,0,31,9],[39,0,39,9],[45,0,45,9],[44,0,44,3],[38,0,38,3],[16,6,16,9],[23,6,23,9],[33,6,33,9],[32,6,32,9],[44,6,44,9],[43,6,43,9],[34,6,34,9],[38,6,38,9],[37,6,37,9],[57,6,57,9],[30,0,30,3],[61,6,61,9],[60,6,60,9],[23,0,23,3],[54,0,54,9],[56,6,56,9],[55,6,55,9],[36,6,36,9],[35,6,35,9],[30,6,30,9],[29,6,29,9],[27,6,27,9],[26,6,26,9],[25,6,25,9],[42,6,42,9]]}
["ANNEX 3. Detall dels ingressos obtinguts per a la realització de les activitats subvencionades"]
[]
[null,"Nom de la persona física/jurídica beneficiària:        ",{"$f":"IF('annex 1A - ESTAT DESP-ING'!B3<>\"\",'annex 1A - ESTAT DESP-ING'!B3,\"\")","v":""},null,"Import total del projecte :",null,null,{"$f":"IF('annex 1A - ESTAT DESP-ING'!G4=\"\",\"\",'annex 1A - ESTAT DESP-ING'!G4)","v":0},"euros"]
[null,"Codi de subvenció",{"$f":"IF('annex 1A - ESTAT DESP-ING'!B4<>\"\",'annex 1A - ESTAT DESP-ING'!B4,\"\")","v":""},null,"Import de la subvenció atorgada:",null,null,{"$f":"IF('annex 1A - ESTAT DESP-ING'!G5=\"\",\"\",'annex 1A - ESTAT DESP-ING'!G5)","v":""},"euros"]
[null,"Nom del projecte subvencionat",{"$f":"IF('annex 1A - ESTAT DESP-ING'!B5<>\"\",'annex 1A - ESTAT DESP-ING'!B5,\"\")","v":""},null,"Període d'execució del projecte subvencionat:",null,null,{"$f":"IF('annex 1A - ESTAT DESP-ING'!G3=\"\",\"\",'annex 1A - ESTAT DESP-ING'!G3)","v":""},"a"]
[]
["Ingressos del projecte/activitat/servei subvencionat"]
["núm. d'ordre (0)","Concepte de l'ingrés","Emissor de l'ingrés",null,"Data de cobrament\n(dd/mm/aaaa)","Import","Observacions"]
[null,null,"NIF","Nom","(2)","euros"]
["A. Subvencions de l'Ajuntament de Barcelona (1)"]
[{"$f":"IF(B11<>\"\",1,\"\")","v":1},"Subvenció rebuda per aquest projecte/activitat/servei en la convocatòria general de subvencions","P0801900B","Àrea de l'Ajuntament de Barcelona..."]
[{"$f":"IF(B12<>\"\",MAX($A$10:A11)+1,\"\")","v":2},"Subvenció rebuda per aquest projecte/activitat/servei en la convocatòria general de subvencions","P0801900B","Districte de l'Ajuntament de Barcelona...."]
[{"$f":"IF(B13<>\"\",MAX($A$10:A12)+1,\"\")","v":3},"Subvenció rebuda per aquest projecte/activitat/servei en la convocatòria general de subvencions",null,"Institut Barcelona Esports"]
[{"$f":"IF(B14<>\"\",MAX($A$10:A13)+1,\"\")","v":4},"Subvenció rebuda per aquest projecte/activitat/servei en la convocatòria general de subvencions",null,"Institut de Cultura "]
[{"$f":"IF(B15<>\"\",MAX($A$10:A14)+1,\"\")","v":""}]
[{"$f":"IF(B16<>\"\",MAX($A$10:A15)+1,\"\")","v":""}]
[null,null,null,null,"Subtotal A",{"$f":"SUM(F11:F16)","v":0}]
["B. Subvencions d'altres administracions"]
[{"$f":"IF(B19<>\"\",MAX($A$10:A18)+1,\"\")","v":5},"Subvenció rebuda per al projecte (indicar el nom del projecte)",null,"Generalitat de Catalunya"]
[{"$f":"IF(B20<>\"\",MAX($A$10:A19)+1,\"\")","v":6},"Subvenció rebuda per al projecte (indicar el nom del projecte)",null,"Diputació de Barcelona"]
[{"$f":"IF(B21<>\"\",MAX($A$10:A20)+1,\"\")","v":7},"Subvenció rebuda per al projecte (indicar el nom del projecte)",null,"Administració general de l'Estat"]
[{"$f":"IF(B22<>\"\",MAX($A$10:A21)+1,\"\")","v":""}]
[{"$f":"IF(B23<>\"\",MAX($A$10:A22)+1,\"\")","v":""}]
[null,null,null,null,"Subtotal B",{"$f":"SUM(F19:F23)","v":0}]
["C. Aportacions d'ens privats"]
[{"$f":"IF(B26<>\"\",MAX($A$10:A25)+1,\"\")","v":""}]
[{"$f":"IF(B27<>\"\",MAX($A$10:A26)+1,\"\")","v":""}]
[{"$f":"IF(B28<>\"\",MAX($A$10:A27)+1,\"\")","v":""}]
[{"$f":"IF(B29<>\"\",MAX($A$10:A28)+1,\"\")","v":""}]
[{"$f":"IF(B30<>\"\",MAX($A$10:A29)+1,\"\")","v":""}]
[null,null,null,null,"Subtotal C",{"$f":"SUM(F26:F30)","v":0}]
["D. Recursos propis de l'entitat"]
[{"$f":"IF(B33<>\"\",MAX($A$10:A32)+1,\"\")","v":""}]
[{"$f":"IF(B34<>\"\",MAX($A$10:A33)+1,\"\")","v":""}]
[{"$f":"IF(B35<>\"\",MAX($A$10:A34)+1,\"\")","v":""}]
[{"$f":"IF(B36<>\"\",MAX($A$10:A35)+1,\"\")","v":""}]
[{"$f":"IF(B37<>\"\",MAX($A$10:A36)+1,\"\")","v":""}]
[{"$f":"IF(B38<>\"\",MAX($A$10:A37)+1,\"\")","v":""}]
[null,null,null,null,"Subtotal D",{"$f":"SUM(F33:F38)","v":0}]
["E. Taquillatge"]
[{"$f":"IF(B41<>\"\",MAX($A$10:A40)+1,\"\")","v":""}]
[{"$f":"IF(B42<>\"\",MAX($A$10:A41)+1,\"\")","v":""}]
[{"$f":"IF(B43<>\"\",MAX($A$10:A42)+1,\"\")","v":""}]
[{"$f":"IF(B44<>\"\",MAX($A$10:A43)+1,\"\")","v":""}]
[null,null,null,null,"Subtotal E",{"$f":"SUM(F41:F44)","v":0}]
["F. Quotes d'inscripció"]
[{"$f":"IF(B47<>\"\",MAX($A$10:A46)+1,\"\")","v":""}]
[{"$f":"IF(B48<>\"\",MAX($A$10:A47)+1,\"\")","v":""}]
[{"$f":"IF(B49<>\"\",MAX($A$10:A48)+1,\"\")","v":""}]
[{"$f":"IF(B50<>\"\",MAX($A$10:A49)+1,\"\")","v":""}]
[{"$f":"IF(B51<>\"\",MAX($A$10:A50)+1,\"\")","v":""}]
[{"$f":"IF(B52<>\"\",MAX($A$10:A51)+1,\"\")","v":""}]
[{"$f":"IF(B53<>\"\",MAX($A$10:A52)+1,\"\")","v":""}]
[null,null,null,null,"Subtotal F",{"$f":"SUM(F47:F53)","v":0}]
["G. Venda de Productes"]
[{"$f":"IF(B56<>\"\",MAX($A$10:A55)+1,\"\")","v":""}]
[{"$f":"IF(B57<>\"\",MAX($A$10:A56)+1,\"\")","v":""}]
[{"$f":"IF(B58<>\"\",MAX($A$10:A57)+1,\"\")","v":""}]
[{"$f":"IF(B59<>\"\",MAX($A$10:A58)+1,\"\")","v":""}]
[{"$f":"IF(B60<>\"\",MAX($A$10:A59)+1,\"\")","v":""}]
[{"$f":"IF(B61<>\"\",MAX($A$10:A60)+1,\"\")","v":""}]
[null,null,null,null,"Subtotal G",{"$f":"SUM(F56:F61)","v":0}]
["H. Publicitat i/o Esponsorització"]
[{"$f":"IF(B64<>\"\",MAX($A$10:A63)+1,\"\")","v":""}]
[{"$f":"IF(B65<>\"\",MAX($A$10:A64)+1,\"\")","v":""}]
[{"$f":"IF(B66<>\"\",MAX($A$10:A65)+1,\"\")","v":""}]
[{"$f":"IF(B67<>\"\",MAX($A$10:A66)+1,\"\")","v":""}]
[{"$f":"IF(B68<>\"\",MAX($A$10:A67)+1,\"\")","v":""}]
[null,null,null,null,"Subtotal H",{"$f":"SUM(F64:F68)","v":0}]
["I. Altres ingressos"]
[{"$f":"IF(B71<>\"\",MAX($A$10:A70)+1,\"\")","v":""}]
[{"$f":"IF(B72<>\"\",MAX($A$10:A71)+1,\"\")","v":""}]
[{"$f":"IF(B73<>\"\",MAX($A$10:A72)+1,\"\")","v":""}]
[{"$f":"IF(B74<>\"\",MAX($A$10:A73)+1,\"\")","v":""}]
[{"$f":"IF(B75<>\"\",MAX($A$10:A74)+1,\"\")","v":""}]
[{"$f":"IF(B76<>\"\",MAX($A$10:A75)+1,\"\")","v":""}]
[{"$f":"IF(B77<>\"\",MAX($A$10:A76)+1,\"\")","v":""}]
[{"$f":"IF(B78<>\"\",MAX($A$10:A77)+1,\"\")","v":""}]
[null,null,null,null,"Subtotal I",{"$f":"SUM(F71:F78)","v":0}]
["Total INGRESSOS",null,null,null,"TOTAL",{"$f":"+F17+F24+F31+F39+F45+F54+F62+F69+F79","v":0}]
[]
[null,{"$f":"+'annex 1A - ESTAT DESP-ING'!A33","v":"El Sr/Sra (indiqueu nom i cognoms),  amb DNI/NIE número (indiqueu DNI/NIE) en qualitat de persona física beneficiària o representant legal de la persona jurídica beneficiària (indicar el nom de l'entitat) amb NIF (indicar el NIF de l'entitat)"}]
[null,"CERTIFICA que els ingressos imputats al projecte/activitat/servei subvencionat han estat efectivament ingressats; que custodiarà la documentació suport que ho acredita; que  aquesta documentació es troba a disposició de l'Ajuntament de Barcelona o dels altres ens municipals en els arxius d'aquesta Entitat, durant un període mínim de 4 anys a comptar des de la data de presentació de la present justificació."]
[]
[null,"Població i data: ",null,null,"Signatura i segell"]
[]
[null,"Nota:"]
[null,"(0) El número d'ordre ha de ser correlatiu començant pel número 1"]
[null,"(1) Si per part de l'Ajuntament només s'ha rebut subvenció d'un sector o districte o institut, es poden esborrar la resta, que s'han indicat a mode d'exemple."]
[null,"(2) En cas que l'ingrés estigui pendent cobrament, indicar \"P. Cobrament\" "]